[Event "Titled Tuesday Blitz March 21 Early 2023"]
[White "Darini, Pouria"]
[Black "Donskov, Anatoly"]
[WhiteFideId "12502200"]
[BlackFideId "24143413"]
[WhiteElo "2482"]
[BlackElo "2247"]
[Result "1-0"]
[Round "03"]
[TimeControl "180+2"]
[Date "2023.03.21"]
[WhiteClock "0:00:30"]
[BlackClock "0:00:01"]

1. e4 {[%clk 0:03:00]}  c5 {[%clk 0:02:58]} 2. Nf3 {[%clk 0:03:01]}  e6 {[%clk 0:02:58]} 3. d4 {[%clk 0:03:02]}  cxd4 {[%clk 0:02:59]} 4. Nxd4 {[%clk 0:03:02]}  Nf6 {[%clk 0:03:00]} 5. Nc3 {[%clk 0:03:03]}  Nc6 {[%clk 0:03:00]} 6. Nxc6 {[%clk 0:03:03]}  bxc6 {[%clk 0:03:01]} 7. Bd3 {[%clk 0:03:04]}  d5 {[%clk 0:03:01]} 8. O-O {[%clk 0:03:05]}  Be7 {[%clk 0:03:01]} 9. Qe2 {[%clk 0:03:05]}  O-O {[%clk 0:03:01]} 10. b3 {[%clk 0:03:06]}  a5 {[%clk 0:03:01]} 11. Bb2 {[%clk 0:03:06]}  Nd7 {[%clk 0:03:01]} 12. Rad1 {[%clk 0:03:06]}  Nc5 {[%clk 0:03:01]} 13. exd5 {[%clk 0:03:02]}  cxd5 {[%clk 0:02:52]} 14. Bb5 {[%clk 0:02:44]}  Bf6 {[%clk 0:02:20]} 15. Qf3 {[%clk 0:02:43]}  Ba6 {[%clk 0:02:13]} 16. Bxa6 {[%clk 0:02:40]}  Rxa6 {[%clk 0:02:02]} 17. Ba3 {[%clk 0:02:33]}  Qc8 {[%clk 0:01:44]} 18. Nb5 {[%clk 0:02:26]}  Ne4 {[%clk 0:01:37]} 19. c4 {[%clk 0:02:25]}  Rd8 {[%clk 0:01:31]} 20. cxd5 {[%clk 0:02:26]}  exd5 {[%clk 0:01:32]} 21. Rc1 {[%clk 0:02:26]}  Qb8 {[%clk 0:01:17]} 22. Qd3 {[%clk 0:02:25]}  Be5 {[%clk 0:00:56]} 23. g3 {[%clk 0:02:08]}  Rh6 {[%clk 0:00:45]} 24. Nd4 {[%clk 0:01:59]}  Qb7 {[%clk 0:00:27]} 25. Nf5 {[%clk 0:01:50]}  Rh5 {[%clk 0:00:21]} 26. Ne7+ {[%clk 0:01:29]}  Kh8 {[%clk 0:00:21]} 27. Qf3 {[%clk 0:01:24]}  Nf6 {[%clk 0:00:12]} 28. Nc6 {[%clk 0:01:17]}  Qd7 {[%clk 0:00:09]} 29. Nxd8 {[%clk 0:01:13]}  Qxd8 {[%clk 0:00:09]} 30. Rfe1 {[%clk 0:01:11]}  h6 {[%clk 0:00:09]} 31. h4 {[%clk 0:01:02]}  Qd7 {[%clk 0:00:09]} 32. Kg2 {[%clk 0:00:59]}  Rf5 {[%clk 0:00:09]} 33. Qd3 {[%clk 0:00:51]}  d4 {[%clk 0:00:09]} 34. Qc4 {[%clk 0:00:40]}  Kh7 {[%clk 0:00:05]} 35. Qc6 {[%clk 0:00:40]}  Qd8 {[%clk 0:00:03]} 36. f4 {[%clk 0:00:41]}  Bb8 {[%clk 0:00:03]} 37. Rc5 {[%clk 0:00:38]}  Rxc5 {[%clk 0:00:03]} 38. Bxc5 {[%clk 0:00:39]}  Ng4 {[%clk 0:00:02]} 39. Qe4+ {[%clk 0:00:38]}  g6 {[%clk 0:00:02]} 40. Bxd4 {[%clk 0:00:36]}  Qd6 {[%clk 0:00:01]} 41. h5 {[%clk 0:00:30]} 1-0


[Site "https://www.chess.com"]

[Event "Titled Tuesday Blitz March 21 Early 2023"]
[White "Eynullayev, Atilla"]
[Black "Matinian, Nikita"]
[WhiteFideId "13413570"]
[BlackFideId "24129100"]
[WhiteElo "2181"]
[BlackElo "2422"]
[Result "1-0"]
[Round "03"]
[TimeControl "180+2"]
[Date "2023.03.21"]
[WhiteClock "0:00:04"]
[BlackClock "0:00:02"]

1. d4 {[%clk 0:03:00]}  Nf6 {[%clk 0:02:49]} 2. c4 {[%clk 0:03:01]}  e6 {[%clk 0:02:48]} 3. Nc3 {[%clk 0:03:01]}  Bb4 {[%clk 0:02:48]} 4. e3 {[%clk 0:03:02]}  b6 {[%clk 0:02:48]} 5. Ne2 {[%clk 0:03:01]}  Ba6 {[%clk 0:02:46]} 6. a3 {[%clk 0:03:00]}  Bxc3+ {[%clk 0:02:47]} 7. Nxc3 {[%clk 0:03:00]}  O-O {[%clk 0:02:46]} 8. Be2 {[%clk 0:02:49]}  d5 {[%clk 0:02:46]} 9. b3 {[%clk 0:02:49]}  c5 {[%clk 0:02:44]} 10. O-O {[%clk 0:02:35]}  cxd4 {[%clk 0:02:42]} 11. exd4 {[%clk 0:02:34]}  Nc6 {[%clk 0:02:35]} 12. Be3 {[%clk 0:01:56]}  Rc8 {[%clk 0:02:26]} 13. Rc1 {[%clk 0:01:48]}  dxc4 {[%clk 0:02:19]} 14. bxc4 {[%clk 0:01:47]}  Na5 {[%clk 0:02:12]} 15. c5 {[%clk 0:01:47]}  Bxe2 {[%clk 0:02:12]} 16. Nxe2 {[%clk 0:01:18]}  Nd5 {[%clk 0:02:07]} 17. Qd3 {[%clk 0:01:05]}  Qe7 {[%clk 0:01:56]} 18. Bd2 {[%clk 0:00:55]}  Nc6 {[%clk 0:01:27]} 19. Qb5 {[%clk 0:00:46]}  Qd7 {[%clk 0:01:21]} 20. Rfd1 {[%clk 0:00:33]}  Rfd8 {[%clk 0:01:15]} 21. Bg5 {[%clk 0:00:31]}  f6 {[%clk 0:01:15]} 22. Bh4 {[%clk 0:00:25]}  Nce7 {[%clk 0:01:11]} 23. Qa6 {[%clk 0:00:19]}  Nf5 {[%clk 0:01:08]} 24. Bg3 {[%clk 0:00:19]}  h5 {[%clk 0:01:06]} 25. h3 {[%clk 0:00:17]}  h4 {[%clk 0:01:06]} 26. Bh2 {[%clk 0:00:17]}  Kf7 {[%clk 0:00:57]} 27. Qd3 {[%clk 0:00:16]}  Qa4 {[%clk 0:00:53]} 28. Qf3 {[%clk 0:00:13]}  g6 {[%clk 0:00:52]} 29. Qe4 {[%clk 0:00:07]}  bxc5 {[%clk 0:00:50]} 30. Nf4 {[%clk 0:00:04]}  Nxf4 {[%clk 0:00:44]} 31. Bxf4 {[%clk 0:00:05]}  Nxd4 {[%clk 0:00:42]} 32. Qe3 {[%clk 0:00:02]}  g5 {[%clk 0:00:36]} 33. Bh2 {[%clk 0:00:02]}  Nf5 {[%clk 0:00:25]} 34. Qe2 {[%clk 0:00:02]}  Ng7 {[%clk 0:00:18]} 35. Re1 {[%clk 0:00:02]}  Rd5 {[%clk 0:00:12]} 36. Qf3 {[%clk 0:00:02]}  Qd7 {[%clk 0:00:11]} 37. Rb1 {[%clk 0:00:02]}  Kg6 {[%clk 0:00:08]} 38. Rb2 {[%clk 0:00:02]}  e5 {[%clk 0:00:09]} 39. Qe4+ {[%clk 0:00:02]}  Nf5 {[%clk 0:00:07]} 40. g4 {[%clk 0:00:01]}  hxg3 {[%clk 0:00:08]} 41. fxg3 {[%clk 0:00:02]}  Rd4 {[%clk 0:00:09]} 42. Qb1 {[%clk 0:00:03]}  Rd3 {[%clk 0:00:06]} 43. Rb7 {[%clk 0:00:03]}  Qd4+ {[%clk 0:00:02]} 44. Kh1 {[%clk 0:00:04]} 1-0


[Site "https://www.chess.com"]

[Event "Titled Tuesday Blitz March 21 Early 2023"]
[White "Khandelwal, Ankush"]
[Black "Martinez Reyes, Pedro Ramon"]
[WhiteFideId "413470"]
[BlackFideId "3901807"]
[WhiteElo "2263"]
[BlackElo "2340"]
[Result "0-1"]
[Round "03"]
[TimeControl "180+2"]
[Date "2023.03.21"]
[WhiteClock "0:01:23"]
[BlackClock "0:02:05"]

1. e4 {[%clk 0:03:00]}  c6 {[%clk 0:02:59]} 2. d4 {[%clk 0:02:58]}  d5 {[%clk 0:02:59]} 3. e5 {[%clk 0:02:57]}  Bf5 {[%clk 0:02:58]} 4. Nf3 {[%clk 0:02:56]}  e6 {[%clk 0:02:56]} 5. Be2 {[%clk 0:02:53]}  Nd7 {[%clk 0:02:57]} 6. O-O {[%clk 0:02:51]}  Ne7 {[%clk 0:02:57]} 7. Nbd2 {[%clk 0:02:44]}  Bg4 {[%clk 0:02:57]} 8. h3 {[%clk 0:02:38]}  Bxf3 {[%clk 0:02:57]} 9. Nxf3 {[%clk 0:02:36]}  Nf5 {[%clk 0:02:58]} 10. c4 {[%clk 0:02:28]}  dxc4 {[%clk 0:02:56]} 11. Bxc4 {[%clk 0:02:28]}  Nb6 {[%clk 0:02:57]} 12. Bb3 {[%clk 0:02:26]}  Be7 {[%clk 0:02:56]} 13. a4 {[%clk 0:02:20]}  a5 {[%clk 0:02:52]} 14. Be3 {[%clk 0:02:17]}  Nd5 {[%clk 0:02:52]} 15. Qd3 {[%clk 0:02:12]}  O-O {[%clk 0:02:43]} 16. Rad1 {[%clk 0:02:10]}  Qb6 {[%clk 0:02:42]} 17. Bc4 {[%clk 0:02:01]}  Rfd8 {[%clk 0:02:41]} 18. b3 {[%clk 0:02:01]}  h6 {[%clk 0:02:35]} 19. Qe4 {[%clk 0:02:00]}  Nc3 {[%clk 0:02:34]} 20. Qg4 {[%clk 0:02:00]}  Nxd1 {[%clk 0:02:31]} 21. Rxd1 {[%clk 0:02:01]}  Qb4 {[%clk 0:02:20]} 22. Bd2 {[%clk 0:01:44]}  Qa3 {[%clk 0:02:18]} 23. Bc1 {[%clk 0:01:44]}  Qa2 {[%clk 0:02:14]} 24. Bxe6 {[%clk 0:01:29]}  fxe6 {[%clk 0:02:12]} 25. Bxh6 {[%clk 0:01:30]}  Qxb3 {[%clk 0:02:12]} 26. Re1 {[%clk 0:01:22]}  Nxh6 {[%clk 0:02:11]} 27. Qh5 {[%clk 0:01:23]}  Rf8 {[%clk 0:02:05]} 0-1


[Site "https://www.chess.com"]

[Event "Titled Tuesday Blitz March 21 Early 2023"]
[White "De Silva, L M S T"]
[Black "Aarav Dengla"]
[WhiteFideId "9953698"]
[BlackFideId "45059756"]
[WhiteElo "2403"]
[BlackElo "2285"]
[Result "1-0"]
[Round "03"]
[TimeControl "180+2"]
[Date "2023.03.21"]
[WhiteClock "0:02:04"]
[BlackClock "0:00:18"]

1. e4 {[%clk 0:02:56]}  c5 {[%clk 0:02:52]} 2. Nf3 {[%clk 0:02:56]}  d6 {[%clk 0:02:50]} 3. Bb5+ {[%clk 0:02:55]}  Nd7 {[%clk 0:02:45]} 4. Ba4 {[%clk 0:02:55]}  Nf6 {[%clk 0:02:40]} 5. O-O {[%clk 0:02:55]}  e6 {[%clk 0:02:38]} 6. Re1 {[%clk 0:02:53]}  Be7 {[%clk 0:02:37]} 7. c3 {[%clk 0:02:51]}  a6 {[%clk 0:02:27]} 8. d4 {[%clk 0:02:51]}  b5 {[%clk 0:02:27]} 9. Bb3 {[%clk 0:02:50]}  Bb7 {[%clk 0:02:26]} 10. Nbd2 {[%clk 0:02:49]}  O-O {[%clk 0:02:25]} 11. e5 {[%clk 0:02:47]}  dxe5 {[%clk 0:02:24]} 12. dxe5 {[%clk 0:02:48]}  Nd5 {[%clk 0:02:25]} 13. Ne4 {[%clk 0:02:48]}  c4 {[%clk 0:02:26]} 14. Bc2 {[%clk 0:02:47]}  Nc5 {[%clk 0:02:26]} 15. Nxc5 {[%clk 0:02:13]}  Bxc5 {[%clk 0:02:27]} 16. Bxh7+ {[%clk 0:02:14]}  Kxh7 {[%clk 0:01:54]} 17. Ng5+ {[%clk 0:02:15]}  Kg6 {[%clk 0:01:55]} 18. Qc2+ {[%clk 0:02:07]}  f5 {[%clk 0:01:21]} 19. exf6+ {[%clk 0:02:06]}  Kh5 {[%clk 0:00:18]} 20. Qh7+ {[%clk 0:02:04]} 1-0


[Site "https://www.chess.com"]

[Event "Titled Tuesday Blitz March 21 Early 2023"]
[White "Gonzalez, Francisco Silva"]
[Black "Lewtak, Damian"]
[WhiteFideId "1512285"]
[BlackFideId "1141724"]
[WhiteElo "2074"]
[BlackElo "2302"]
[Result "0-1"]
[Round "03"]
[TimeControl "180+2"]
[Date "2023.03.21"]
[WhiteClock "0:00:18"]
[BlackClock "0:00:08"]

1. d4 {[%clk 0:02:53]}  d6 {[%clk 0:02:59]} 2. e4 {[%clk 0:02:51]}  e5 {[%clk 0:02:59]} 3. d5 {[%clk 0:02:48]}  f5 {[%clk 0:02:56]} 4. exf5 {[%clk 0:02:48]}  Bxf5 {[%clk 0:02:55]} 5. c4 {[%clk 0:02:48]}  Nd7 {[%clk 0:02:54]} 6. Nc3 {[%clk 0:02:47]}  Ngf6 {[%clk 0:02:54]} 7. Nge2 {[%clk 0:02:46]}  Bg6 {[%clk 0:02:51]} 8. Ng3 {[%clk 0:02:46]}  a5 {[%clk 0:02:51]} 9. Bd3 {[%clk 0:02:46]}  Bxd3 {[%clk 0:02:49]} 10. Qxd3 {[%clk 0:02:46]}  Nc5 {[%clk 0:02:50]} 11. Qc2 {[%clk 0:02:46]}  Be7 {[%clk 0:02:48]} 12. h3 {[%clk 0:02:46]}  Qd7 {[%clk 0:02:46]} 13. O-O {[%clk 0:02:44]}  O-O {[%clk 0:02:41]} 14. Be3 {[%clk 0:02:43]}  b6 {[%clk 0:02:36]} 15. f4 {[%clk 0:02:43]}  exf4 {[%clk 0:02:32]} 16. Bxf4 {[%clk 0:02:43]}  Rae8 {[%clk 0:02:30]} 17. Rae1 {[%clk 0:02:42]}  Bd8 {[%clk 0:02:29]} 18. b3 {[%clk 0:02:35]}  Rxe1 {[%clk 0:02:25]} 19. Rxe1 {[%clk 0:02:34]}  Re8 {[%clk 0:02:25]} 20. Re2 {[%clk 0:02:33]}  Rxe2 {[%clk 0:02:11]} 21. Qxe2 {[%clk 0:02:31]}  Qe7 {[%clk 0:02:11]} 22. Qc2 {[%clk 0:02:12]}  g6 {[%clk 0:02:04]} 23. Qd2 {[%clk 0:02:02]}  Nfd7 {[%clk 0:01:38]} 24. Bh6 {[%clk 0:01:51]}  Qf6 {[%clk 0:01:17]} 25. Nce4 {[%clk 0:01:48]}  Qe5 {[%clk 0:01:08]} 26. Qe3 {[%clk 0:01:36]}  Bh4 {[%clk 0:00:44]} 27. Nxc5 {[%clk 0:01:29]}  bxc5 {[%clk 0:00:34]} 28. Qxe5 {[%clk 0:01:26]}  Nxe5 {[%clk 0:00:35]} 29. Ne4 {[%clk 0:01:22]}  Kf7 {[%clk 0:00:33]} 30. Kf1 {[%clk 0:01:19]}  Be7 {[%clk 0:00:33]} 31. Ke2 {[%clk 0:01:18]}  c6 {[%clk 0:00:30]} 32. Bf4 {[%clk 0:01:13]}  cxd5 {[%clk 0:00:28]} 33. cxd5 {[%clk 0:01:13]}  Nd7 {[%clk 0:00:17]} 34. Bxd6 {[%clk 0:01:07]}  Nb6 {[%clk 0:00:16]} 35. Bxe7 {[%clk 0:00:58]}  Kxe7 {[%clk 0:00:17]} 36. d6+ {[%clk 0:00:57]}  Ke6 {[%clk 0:00:17]} 37. Nxc5+ {[%clk 0:00:52]}  Kxd6 {[%clk 0:00:17]} 38. Nb7+ {[%clk 0:00:51]}  Ke5 {[%clk 0:00:15]} 39. Nxa5 {[%clk 0:00:51]}  Kd4 {[%clk 0:00:15]} 40. Kd2 {[%clk 0:00:48]}  Nd5 {[%clk 0:00:15]} 41. g3 {[%clk 0:00:47]}  h5 {[%clk 0:00:15]} 42. h4 {[%clk 0:00:45]}  Ne7 {[%clk 0:00:13]} 43. Nc6+ {[%clk 0:00:45]}  Nxc6 {[%clk 0:00:13]} 44. a3 {[%clk 0:00:43]}  Ne7 {[%clk 0:00:09]} 45. Ke2 {[%clk 0:00:41]}  Nf5 {[%clk 0:00:09]} 46. Kf2 {[%clk 0:00:41]}  Ke4 {[%clk 0:00:09]} 47. a4 {[%clk 0:00:40]}  Nd4 {[%clk 0:00:05]} 48. b4 {[%clk 0:00:39]}  Nc6 {[%clk 0:00:05]} 49. b5 {[%clk 0:00:39]}  Na5 {[%clk 0:00:05]} 50. b6 {[%clk 0:00:39]}  Nb7 {[%clk 0:00:04]} 51. Ke2 {[%clk 0:00:38]}  Na5 {[%clk 0:00:04]} 52. Kf2 {[%clk 0:00:38]}  Kd4 {[%clk 0:00:05]} 53. Kf3 {[%clk 0:00:37]}  Ke5 {[%clk 0:00:05]} 54. g4 {[%clk 0:00:36]}  Nb7 {[%clk 0:00:04]} 55. Kg3 {[%clk 0:00:35]}  Ke4 {[%clk 0:00:04]} 56. gxh5 {[%clk 0:00:33]}  gxh5 {[%clk 0:00:05]} 57. Kg2 {[%clk 0:00:29]}  Kf4 {[%clk 0:00:05]} 58. Kh2 {[%clk 0:00:28]}  Kg4 {[%clk 0:00:05]} 59. Kg2 {[%clk 0:00:29]}  Kxh4 {[%clk 0:00:06]} 60. Kh2 {[%clk 0:00:30]}  Kg4 {[%clk 0:00:07]} 61. Kg2 {[%clk 0:00:30]}  h4 {[%clk 0:00:07]} 62. Kh2 {[%clk 0:00:31]}  h3 {[%clk 0:00:08]} 63. Kh1 {[%clk 0:00:31]}  Kg3 {[%clk 0:00:08]} 64. Kg1 {[%clk 0:00:30]}  Na5 {[%clk 0:00:09]} 65. Kh1 {[%clk 0:00:28]}  Nb7 {[%clk 0:00:09]} 66. Kg1 {[%clk 0:00:28]}  Nc5 {[%clk 0:00:06]} 67. a5 {[%clk 0:00:26]}  h2+ {[%clk 0:00:06]} 68. Kf1 {[%clk 0:00:20]}  h1=Q+ {[%clk 0:00:06]} 69. Ke2 {[%clk 0:00:20]}  Qb7 {[%clk 0:00:06]} 70. a6 {[%clk 0:00:20]}  Nxa6 {[%clk 0:00:07]} 71. Kf1 {[%clk 0:00:19]}  Qxb6 {[%clk 0:00:08]} 72. Ke1 {[%clk 0:00:19]}  Qf2+ {[%clk 0:00:07]} 73. Kd1 {[%clk 0:00:18]}  Kf3 {[%clk 0:00:08]} 0-1


[Site "https://www.chess.com"]

[Event "Titled Tuesday Blitz March 21 Early 2023"]
[White "Gulkov, Igor A."]
[Black "Chernobay, Artem"]
[WhiteFideId "4120973"]
[BlackFideId "4167406"]
[WhiteElo "2343"]
[BlackElo "2474"]
[Result "0-1"]
[Round "03"]
[TimeControl "180+2"]
[Date "2023.03.21"]
[WhiteClock "0:00:07"]
[BlackClock "0:00:10"]

1. Nf3 {[%clk 0:03:00]}  f5 {[%clk 0:02:57]} 2. d4 {[%clk 0:02:59]}  Nf6 {[%clk 0:02:56]} 3. g3 {[%clk 0:02:59]}  g6 {[%clk 0:02:56]} 4. Bg2 {[%clk 0:02:59]}  Bg7 {[%clk 0:02:56]} 5. O-O {[%clk 0:02:59]}  O-O {[%clk 0:02:57]} 6. c4 {[%clk 0:02:58]}  d6 {[%clk 0:02:56]} 7. Nc3 {[%clk 0:02:58]}  Nc6 {[%clk 0:02:57]} 8. d5 {[%clk 0:02:58]}  Ne5 {[%clk 0:02:56]} 9. Qb3 {[%clk 0:02:57]}  Kh8 {[%clk 0:02:48]} 10. Rd1 {[%clk 0:02:55]}  a6 {[%clk 0:02:36]} 11. Be3 {[%clk 0:02:49]}  h6 {[%clk 0:02:22]} 12. Rac1 {[%clk 0:02:45]}  Qe8 {[%clk 0:02:10]} 13. Bd4 {[%clk 0:02:16]}  Nfd7 {[%clk 0:01:59]} 14. e3 {[%clk 0:02:09]}  c5 {[%clk 0:01:35]} 15. dxc6 {[%clk 0:02:05]}  bxc6 {[%clk 0:01:35]} 16. Ne2 {[%clk 0:01:55]}  Rb8 {[%clk 0:01:30]} 17. Qa3 {[%clk 0:01:45]}  g5 {[%clk 0:01:22]} 18. b3 {[%clk 0:01:34]}  Qh5 {[%clk 0:01:15]} 19. Bxe5 {[%clk 0:01:28]}  Nxe5 {[%clk 0:01:10]} 20. Nxe5 {[%clk 0:01:27]}  Bxe5 {[%clk 0:01:10]} 21. Nd4 {[%clk 0:01:26]}  Bb7 {[%clk 0:00:53]} 22. Nxc6 {[%clk 0:01:15]}  Bxc6 {[%clk 0:00:52]} 23. Bxc6 {[%clk 0:01:14]}  f4 {[%clk 0:00:52]} 24. exf4 {[%clk 0:01:06]}  gxf4 {[%clk 0:00:51]} 25. Rd2 {[%clk 0:01:01]}  Qh3 {[%clk 0:00:28]} 26. Bg2 {[%clk 0:00:58]}  Qg4 {[%clk 0:00:28]} 27. f3 {[%clk 0:00:51]}  Qg5 {[%clk 0:00:24]} 28. g4 {[%clk 0:00:50]}  h5 {[%clk 0:00:25]} 29. h3 {[%clk 0:00:50]}  Qf6 {[%clk 0:00:22]} 30. Rcd1 {[%clk 0:00:49]}  Bc3 {[%clk 0:00:20]} 31. Re2 {[%clk 0:00:47]}  hxg4 {[%clk 0:00:18]} 32. hxg4 {[%clk 0:00:46]}  Bd4+ {[%clk 0:00:18]} 33. Kf1 {[%clk 0:00:45]}  e5 {[%clk 0:00:17]} 34. b4 {[%clk 0:00:32]}  Kg7 {[%clk 0:00:16]} 35. Qd3 {[%clk 0:00:30]}  Rh8 {[%clk 0:00:14]} 36. a3 {[%clk 0:00:21]}  Rh2 {[%clk 0:00:14]} 37. Qf5 {[%clk 0:00:20]}  Qxf5 {[%clk 0:00:10]} 38. gxf5 {[%clk 0:00:20]}  Kf6 {[%clk 0:00:11]} 39. Rxd4 {[%clk 0:00:12]}  exd4 {[%clk 0:00:11]} 40. Re6+ {[%clk 0:00:12]}  Kxf5 {[%clk 0:00:11]} 41. Rxd6 {[%clk 0:00:13]}  Rg8 {[%clk 0:00:10]} 42. Rd5+ {[%clk 0:00:07]}  Ke6 {[%clk 0:00:10]} 0-1


[Site "https://www.chess.com"]

[Event "Titled Tuesday Blitz March 21 Early 2023"]
[White "Itgelt, Khuyagtsogt"]
[Black "Baches Garcia, Guillermo"]
[WhiteFideId "4902912"]
[BlackFideId "2209764"]
[WhiteElo "2227"]
[BlackElo "2462"]
[Result "1-0"]
[Round "03"]
[TimeControl "180+2"]
[Date "2023.03.21"]
[WhiteClock "0:00:05"]
[BlackClock "0:00:01"]

1. d4 {[%clk 0:02:17]}  Nf6 {[%clk 0:02:59]} 2. Nf3 {[%clk 0:02:17]}  e6 {[%clk 0:02:59]} 3. c4 {[%clk 0:02:18]}  Bb4+ {[%clk 0:02:59]} 4. Bd2 {[%clk 0:02:18]}  Bxd2+ {[%clk 0:02:59]} 5. Nbxd2 {[%clk 0:02:17]}  d5 {[%clk 0:02:59]} 6. g3 {[%clk 0:02:18]}  O-O {[%clk 0:03:00]} 7. Bg2 {[%clk 0:02:18]}  Qe7 {[%clk 0:03:00]} 8. O-O {[%clk 0:02:19]}  Rd8 {[%clk 0:02:59]} 9. Qc2 {[%clk 0:02:18]}  c6 {[%clk 0:02:58]} 10. Rad1 {[%clk 0:02:15]}  Nbd7 {[%clk 0:02:56]} 11. Rfe1 {[%clk 0:02:14]}  e5 {[%clk 0:02:51]} 12. e4 {[%clk 0:02:13]}  dxe4 {[%clk 0:02:35]} 13. Nxe4 {[%clk 0:02:14]}  exd4 {[%clk 0:02:35]} 14. Rxd4 {[%clk 0:01:41]}  Qf8 {[%clk 0:02:25]} 15. Red1 {[%clk 0:01:31]}  Nxe4 {[%clk 0:02:19]} 16. Qxe4 {[%clk 0:01:31]}  Re8 {[%clk 0:02:16]} 17. Qf4 {[%clk 0:01:21]}  Nc5 {[%clk 0:02:13]} 18. Qd2 {[%clk 0:01:14]}  a5 {[%clk 0:02:06]} 19. b3 {[%clk 0:01:14]}  Be6 {[%clk 0:02:00]} 20. Ng5 {[%clk 0:01:11]}  Bf5 {[%clk 0:01:55]} 21. h3 {[%clk 0:01:05]}  h6 {[%clk 0:01:52]} 22. Nf3 {[%clk 0:01:05]}  Be4 {[%clk 0:01:45]} 23. Kh2 {[%clk 0:01:03]}  Qe7 {[%clk 0:01:33]} 24. Qc3 {[%clk 0:00:54]}  Qf6 {[%clk 0:01:28]} 25. Qc1 {[%clk 0:00:21]}  g5 {[%clk 0:00:55]} 26. Rd6 {[%clk 0:00:21]}  Qg7 {[%clk 0:00:47]} 27. Qa3 {[%clk 0:00:17]}  Ne6 {[%clk 0:00:39]} 28. Nd4 {[%clk 0:00:17]}  Nxd4 {[%clk 0:00:37]} 29. R6xd4 {[%clk 0:00:16]}  Bxg2 {[%clk 0:00:35]} 30. Kxg2 {[%clk 0:00:17]}  Qf6 {[%clk 0:00:34]} 31. Qd6 {[%clk 0:00:17]}  Re6 {[%clk 0:00:33]} 32. Qc7 {[%clk 0:00:16]}  Re7 {[%clk 0:00:30]} 33. Rd8+ {[%clk 0:00:15]}  Rxd8 {[%clk 0:00:29]} 34. Qxd8+ {[%clk 0:00:15]}  Kg7 {[%clk 0:00:29]} 35. Qd2 {[%clk 0:00:14]}  Qe6 {[%clk 0:00:28]} 36. Qd4+ {[%clk 0:00:11]}  Qe5 {[%clk 0:00:27]} 37. Qxe5+ {[%clk 0:00:10]}  Rxe5 {[%clk 0:00:28]} 38. Kf3 {[%clk 0:00:11]}  a4 {[%clk 0:00:28]} 39. Rd7 {[%clk 0:00:10]}  axb3 {[%clk 0:00:27]} 40. axb3 {[%clk 0:00:11]}  b5 {[%clk 0:00:27]} 41. cxb5 {[%clk 0:00:11]}  Rxb5 {[%clk 0:00:26]} 42. Rd3 {[%clk 0:00:10]}  Rb4 {[%clk 0:00:26]} 43. Ke2 {[%clk 0:00:08]}  Kf8 {[%clk 0:00:18]} 44. Rc3 {[%clk 0:00:06]}  Ke7 {[%clk 0:00:17]} 45. Rxc6 {[%clk 0:00:07]}  Rxb3 {[%clk 0:00:17]} 46. Rxh6 {[%clk 0:00:07]}  Ra3 {[%clk 0:00:17]} 47. Rb6 {[%clk 0:00:06]}  f6 {[%clk 0:00:15]} 48. Kf1 {[%clk 0:00:06]}  Kf7 {[%clk 0:00:15]} 49. Kg2 {[%clk 0:00:07]}  Kg6 {[%clk 0:00:16]} 50. Rb5 {[%clk 0:00:07]}  Rc3 {[%clk 0:00:16]} 51. Rb2 {[%clk 0:00:07]}  Ra3 {[%clk 0:00:16]} 52. Re2 {[%clk 0:00:08]}  Rc3 {[%clk 0:00:16]} 53. Re3 {[%clk 0:00:09]}  Rc2 {[%clk 0:00:16]} 54. Kf3 {[%clk 0:00:09]}  Rc4 {[%clk 0:00:16]} 55. Kg2 {[%clk 0:00:09]}  Ra4 {[%clk 0:00:16]} 56. Rf3 {[%clk 0:00:10]}  Rd4 {[%clk 0:00:16]} 57. g4 {[%clk 0:00:10]}  Rc4 {[%clk 0:00:16]} 58. Kg3 {[%clk 0:00:11]}  Rb4 {[%clk 0:00:16]} 59. h4 {[%clk 0:00:12]}  gxh4+ {[%clk 0:00:16]} 60. Kxh4 {[%clk 0:00:13]}  Rb1 {[%clk 0:00:17]} 61. Kg3 {[%clk 0:00:13]}  Rg1+ {[%clk 0:00:17]} 62. Kf4 {[%clk 0:00:14]}  Ra1 {[%clk 0:00:17]} 63. Re3 {[%clk 0:00:14]}  Ra4+ {[%clk 0:00:17]} 64. Re4 {[%clk 0:00:15]}  Ra2 {[%clk 0:00:17]} 65. f3 {[%clk 0:00:15]}  Ra6 {[%clk 0:00:17]} 66. Rb4 {[%clk 0:00:16]}  Rc6 {[%clk 0:00:17]} 67. Ra4 {[%clk 0:00:16]}  Rb6 {[%clk 0:00:18]} 68. Ke4 {[%clk 0:00:15]}  Re6+ {[%clk 0:00:18]} 69. Kf4 {[%clk 0:00:16]}  Rb6 {[%clk 0:00:18]} 70. Kg3 {[%clk 0:00:16]}  Rc6 {[%clk 0:00:17]} 71. Ra3 {[%clk 0:00:17]}  Rc4 {[%clk 0:00:16]} 72. f4 {[%clk 0:00:17]}  Rb4 {[%clk 0:00:15]} 73. Kf3 {[%clk 0:00:15]}  Rc4 {[%clk 0:00:15]} 74. Re3 {[%clk 0:00:15]}  Rb4 {[%clk 0:00:15]} 75. Re8 {[%clk 0:00:15]}  Rb3+ {[%clk 0:00:15]} 76. Re3 {[%clk 0:00:15]}  Rb4 {[%clk 0:00:15]} 77. Ra3 {[%clk 0:00:16]}  Rc4 {[%clk 0:00:15]} 78. Kg3 {[%clk 0:00:11]}  Rc1 {[%clk 0:00:13]} 79. Ra2 {[%clk 0:00:07]}  Rc3+ {[%clk 0:00:12]} 80. Kh4 {[%clk 0:00:05]}  Rc4 {[%clk 0:00:12]} 81. f5+ {[%clk 0:00:06]}  Kg7 {[%clk 0:00:07]} 82. Kh5 {[%clk 0:00:05]}  Rd4 {[%clk 0:00:05]} 83. Ra7+ {[%clk 0:00:05]}  Kg8 {[%clk 0:00:04]} 84. g5 {[%clk 0:00:05]}  fxg5 {[%clk 0:00:03]} 85. Kg6 {[%clk 0:00:06]}  Kf8 {[%clk 0:00:01]} 86. f6 {[%clk 0:00:05]}  Ke8 {[%clk 0:00:01]} 87. f7+ {[%clk 0:00:04]}  Kf8 {[%clk 0:00:01]} 88. Ra8+ {[%clk 0:00:05]} 1-0


[Site "https://www.chess.com"]

[Event "Titled Tuesday Blitz March 21 Early 2023"]
[White "Yeritsyan, Hayk"]
[Black "Cuenca Jimenez, Jose Fernando"]
[WhiteFideId "13307320"]
[BlackFideId "2255570"]
[WhiteElo "2435"]
[BlackElo "2429"]
[Result "1-0"]
[Round "03"]
[TimeControl "180+2"]
[Date "2023.03.21"]
[WhiteClock "0:00:48"]
[BlackClock "0:00:03"]

1. d4 {[%clk 0:03:00]}  Nf6 {[%clk 0:02:59]} 2. c4 {[%clk 0:03:01]}  g6 {[%clk 0:02:51]} 3. Nc3 {[%clk 0:03:00]}  Bg7 {[%clk 0:02:51]} 4. e4 {[%clk 0:03:00]}  d6 {[%clk 0:02:52]} 5. Be2 {[%clk 0:02:56]}  O-O {[%clk 0:02:52]} 6. Be3 {[%clk 0:02:53]}  Nc6 {[%clk 0:02:51]} 7. d5 {[%clk 0:02:53]}  Ne5 {[%clk 0:02:50]} 8. h3 {[%clk 0:02:51]}  c6 {[%clk 0:02:33]} 9. f4 {[%clk 0:02:48]}  Ned7 {[%clk 0:02:31]} 10. Nf3 {[%clk 0:02:41]}  cxd5 {[%clk 0:02:31]} 11. cxd5 {[%clk 0:02:40]}  Nc5 {[%clk 0:02:20]} 12. e5 {[%clk 0:02:32]}  Nfd7 {[%clk 0:02:05]} 13. O-O {[%clk 0:02:29]}  a5 {[%clk 0:01:39]} 14. Rc1 {[%clk 0:02:26]}  b6 {[%clk 0:01:34]} 15. Bb5 {[%clk 0:02:02]}  dxe5 {[%clk 0:01:28]} 16. Bxc5 {[%clk 0:01:42]}  Nxc5 {[%clk 0:01:16]} 17. fxe5 {[%clk 0:01:40]}  Bh6 {[%clk 0:01:07]} 18. Rc2 {[%clk 0:01:31]}  Bf5 {[%clk 0:01:06]} 19. Re2 {[%clk 0:01:30]}  Rc8 {[%clk 0:00:44]} 20. Nd4 {[%clk 0:01:26]}  Bd7 {[%clk 0:00:36]} 21. a4 {[%clk 0:01:11]}  Bxb5 {[%clk 0:00:27]} 22. axb5 {[%clk 0:01:12]}  Qd7 {[%clk 0:00:25]} 23. Nc6 {[%clk 0:01:03]}  e6 {[%clk 0:00:18]} 24. d6 {[%clk 0:00:57]}  Bg7 {[%clk 0:00:17]} 25. Ne7+ {[%clk 0:00:55]}  Kh8 {[%clk 0:00:17]} 26. Nxc8 {[%clk 0:00:56]}  Rxc8 {[%clk 0:00:18]} 27. Ne4 {[%clk 0:00:55]}  Bxe5 {[%clk 0:00:16]} 28. Nxc5 {[%clk 0:00:55]}  Rxc5 {[%clk 0:00:17]} 29. Rxe5 {[%clk 0:00:48]}  Rxe5 {[%clk 0:00:15]} 30. Qd4 {[%clk 0:00:49]}  f6 {[%clk 0:00:09]} 31. Rxf6 {[%clk 0:00:49]}  Rd5 {[%clk 0:00:03]} 32. Rf8# {[%clk 0:00:48]} 1-0


[Site "https://www.chess.com"]